bitfinex-derivatives/quotes_ETHF0:USTF0_20250403
["timestamp","ask_amount","ask_price","bid_price","bid_amount"]
[1743720214505,1.4617,1811.8,1811.7,3.22199]
[1743720214812,2.56599,1811.8,1811.7,3.22199]
[1743720214999,2.56599,1811.8,1811.7,1.80609]
[1743720216817,1.10441,1811.7,1811.6,1.10436]
[1743720217012,4.04311,1811.7,1811.6,1.10436]
[1743720219517,4.04311,1811.7,1811.5,1.85821]
[1743720219518,1.10441,1811.6,1811.5,1.85821]
[1743720219824,6.30181,1811.6,1811.5,1.85821]
[1743720222924,5.1974,1811.6,1811.5,1.85821]
[1743720223124,6.30181,1811.6,1811.5,1.85821]
[1743720223726,0.00826378,1811.8,1811.7,1.10435]
[1743720224026,3.73026378,1811.8,1811.7,1.10435]
[1743720224225,3.73026378,1811.8,1811.7,2.59975]
[1743720225128,4.83455378,1811.8,1811.7,2.59975]
[1743720225327,6.25335378,1811.8,1811.7,2.59975]
[1743720225527,5.14906378,1811.8,1811.7,2.59975]
[1743720226229,6.25335378,1811.8,1811.7,2.59975]
[1743720226921,5.14906378,1811.8,1811.7,2.59975]
[1743720227126,6.25335378,1811.8,1811.7,2.59975]
[1743720227327,5.14906378,1811.8,1811.7,2.59975]
[1743720227625,6.25335378,1811.8,1811.7,2.59975]
[1743720229731,6.25335378,1811.8,1811.7,1.10435]
[1743720235834,2.53135378,1811.8,1811.7,1.10435]
[1743720236028,1.42706378,1811.8,1811.7,1.10435]
[1743720236539,5.14806378,1811.8,1811.7,1.10435]
[1743720236731,0.00826378,1811.8,1811.7,2.50915]
[1743720239434,0.00826378,1811.8,1811.7,5.00915]
[1743720240739,0.00826378,1811.8,1811.7,1.10435]
[1743720240942,2.15936378,1811.8,1811.7,1.10435]
[1743720242134,3.26365378,1811.8,1811.7,1.10435]
[1743720242434,4.01925378,1811.8,1811.7,1.10435]
[1743720242629,7.73925378,1811.8,1811.7,1.10435]
[1743720245643,1.10435,1811.7,1811.6,1.10435]
[1743720245943,2.62055,1811.7,1811.6,1.10435]
[1743720246141,1.10447,1811.6,1811.5,1.10444]
[1743720246342,2.47937,1811.6,1811.5,1.10444]
[1743720246535,1.1045,1811.5,1811.4,1.10448]
[1743720246734,7.6813,1811.5,1811.4,1.10448]
[1743720247444,7.68127,1811.5,1811.4,1.10448]
[1743720248841,1.10459,1811.4,1811.3,1.10454]
[1743720249043,2.50379,1811.4,1811.3,1.10454]
[1743720251247,1.3992,1811.4,1811.3,1.10454]
[1743720252144,1.3992,1811.4,1811.3,2.55634]
[1743720252448,1.3992,1811.4,1811.3,1.10454]
[1743720253748,2.50373,1811.4,1811.3,1.10454]
[1743720253946,3.22983,1811.4,1811.3,1.10454]
[1743720254448,2.1253,1811.4,1811.3,1.10454]
[1743720254940,3.2078,1811.6,1811.4,1.10453]
[1743720255149,4.31222,1811.6,1811.5,1.10447]
[1743720255445,4.31221,1811.6,1811.5,1.10447]
[1743720255645,3.2078,1811.6,1811.5,1.10447]
[1743720255842,3.2078,1811.6,1811.5,1.79617]
[1743720256142,1.8466,1811.7,1811.6,1.10441]
[1743720257643,1.8466,1811.7,1811.5,0.6917]
[1743720257644,1.10441,1811.6,1811.5,1.10443]
[1743720261949,5.0544,1811.7,1811.6,1.10441]
[1743720262646,8.7734,1811.7,1811.6,1.10441]
[1743720262953,1.10447,1811.6,1811.5,1.10443]
[1743720263943,1.10453,1811.5,1811.4,1.10449]
[1743720264149,1.84953,1811.5,1811.4,1.10449]
[1743720264350,0.745,1811.5,1811.4,1.10449]
[1743720264550,1.10446,1811.6,1811.5,1.10447]
[1743720266351,8.77341,1811.7,1811.6,1.10441]
[1743720268653,8.77341,1811.7,1811.6,1.79311]
[1743720269759,0.7422,1811.7,1811.6,1.79311]
[1743720269959,5.97626378,1811.8,1811.7,1.10435]
[1743720269960,0.00826378,1811.8,1811.7,1.10435]
[1743720270160,0.00826378,1811.8,1811.7,3.27345]
[1743720270858,0.00826378,1811.8,1811.7,6.48125]
[1743720271259,0.00826378,1811.8,1811.7,8.98125]
[1743720272152,0.00826378,1811.8,1811.7,6.48125]
[1743720272559,0.00826378,1811.8,1811.7,8.98125]
[1743720273969,3.78e-06,1811.8,1811.7,8.98125]
[1743720274355,1.4504,1812.4,1812.3,1.10398]
[1743720276166,1.4504,1812.4,1812.3,2.58258]
[1743720279659,0.69356378,1812.5,1812.4,1.10392]
[1743720279866,2.15306378,1812.5,1812.4,2.51962]
[1743720283063,0.00826378,1812.5,1812.4,5.72742]
[1743720283866,1.52196378,1812.5,1812.4,4.31172]
[1743720284058,2.20956378,1812.5,1812.4,4.31172]
[1743720284671,4.01062378,1812.5,1812.4,4.31172]
[1743720284863,2.90676378,1812.5,1812.4,4.31172]
[1743720286267,2.20956378,1812.5,1812.4,4.31172]
[1743720286469,1.52196378,1812.5,1812.4,4.31172]
[1743720287064,1.52196378,1812.5,1812.4,5.00532]
[1743720292973,2.62582378,1812.5,1812.4,4.31172]
[1743720293371,3.38502378,1812.5,1812.4,1.10392]
[1743720294872,2.28116378,1812.5,1812.4,1.10392]
[1743720295367,1.52196378,1812.5,1812.4,1.10392]
[1743720295576,1.52196378,1812.5,1812.4,1.86112]
[1743720298273,1.52196378,1812.5,1812.4,3.32422]
[1743720299569,1.52196378,1812.5,1812.4,1.86112]
[1743720299972,1.52196378,1812.5,1812.4,1.10392]
[1743720300369,1.52196378,1812.5,1812.2,0.00826378]
[1743720300576,1.10398,1812.3,1812.2,0.00826378]
[1743720300775,10.78698,1812.3,1812.2,0.00826378]
[1743720300970,1.10423,1811.9,1811.8,1.10429]
[1743720301171,4.81923,1811.9,1811.8,1.10429]
[1743720301371,1.10431,1811.8,1811.7,1.1043]
[1743720302171,1.10431,1811.8,1811.7,1.10435]
[1743720302372,1.10432,1811.8,1811.7,1.1043]
[1743720303474,4.81929,1811.9,1811.8,1.10429]
[1743720303677,3.715,1811.9,1811.8,1.10429]
[1743720304178,4.81923,1811.9,1811.8,1.10429]
[1743720304377,6.25743,1811.9,1811.8,1.10429]
[1743720304774,5.1532,1811.9,1811.8,1.10429]
[1743720304971,6.25743,1811.9,1811.8,1.10429]
[1743720305177,5.1532,1811.9,1811.8,1.10429]
[1743720306283,3.715,1811.9,1811.8,2.50179]
[1743720306878,5.1532,1812.1,1812.0,1.10417]
[1743720307981,6.25731,1812.1,1812.0,1.10417]
[1743720308383,5.1532,1812.1,1812.0,1.10417]
[1743720309686,6.25731,1812.1,1812.0,1.10417]
[1743720310885,5.1532,1812.1,1812.0,1.10417]
[1743720312685,6.25731,1812.1,1812.0,1.10417]
[1743720313691,1.10432,1811.8,1811.7,1.10428]
[1743720313991,4.31208,1811.9,1811.8,1.10429]
[1743720314289,1.10432,1811.8,1811.7,1.1043]
[1743720314489,2.55482,1811.8,1811.7,1.1043]
[1743720314791,1.10439,1811.7,1811.6,1.10436]
[1743720315088,2.55489,1811.7,1811.6,1.10436]
[1743720315280,1.4505,1811.7,1811.6,1.10436]
[1743720316082,2.55485,1811.7,1811.6,1.10436]
[1743720317891,1.4505,1811.7,1811.6,1.10436]
[1743720318185,2.55485,1811.7,1811.6,1.10436]
[1743720318795,1.4505,1811.7,1811.6,1.10436]
[1743720319001,2.55485,1811.7,1811.6,1.10436]
[1743720319203,1.10446,1811.6,1811.5,1.10442]
[1743720319502,6.93356,1811.6,1811.5,1.10442]
[1743720319704,7.61876,1811.6,1811.5,1.10442]
[1743720319994,7.61876,1811.6,1811.5,1.10447]
[1743720320402,6.5143,1811.6,1811.3,3.2078]
[1743720320602,1.10468,1811.2,1811.1,1.10465]
[1743720320790,4.81868,1811.2,1811.1,1.10465]
[1743720321405,4.4328,1811.2,1811.1,1.10465]
[1743720322505,5.8746,1811.2,1811.1,1.10465]
[1743720322805,5.1558,1811.2,1811.1,1.10465]
[1743720328312,6.26045,1811.2,1811.1,1.10465]
[1743720330308,5.1558,1811.2,1811.1,1.10465]
[1743720332106,0.00826378,1811.3,1811.2,1.10465]
[1743720332305,3.72226378,1811.3,1811.2,3.27545]
[1743720332706,5.16316378,1811.3,1811.2,3.27545]
[1743720336414,0.00826378,1811.3,1811.2,3.27545]
[1743720336617,3.72226378,1811.3,1811.2,4.02295]
[1743720340610,0.00826378,1811.3,1811.2,4.02295]
[1743720341310,0.00826378,1811.3,1811.2,7.23075]
[1743720342518,0.00826378,1811.3,1811.2,4.02295]
[1743720344720,0.00826378,1811.3,1811.2,7.23075]
[1743720347829,0.00826378,1811.3,1811.2,4.02295]
[1743720348127,0.00826378,1811.3,1811.2,7.23075]
[1743720351428,0.73576378,1811.3,1811.2,7.23075]
[1743720351729,5.04815378,1811.3,1811.2,1.10465]
[1743720351931,6.46035378,1811.3,1811.2,1.10465]
[1743720352720,5.35576378,1811.3,1811.2,1.10465]
[1743720355434,8.11733378,1811.3,1810.9,5.9699]
[1743720355635,6.26801,1811.2,1811.1,1.10468]
[1743720356138,5.1633,1811.2,1811.1,1.10468]
[1743720360746,5.1623,1811.2,1811.1,1.10468]
[1743720360932,1.4503,1811.2,1811.1,1.10468]
[1743720361237,5.1623,1811.2,1811.1,1.10468]
[1743720362132,1.4503,1811.2,1811.1,1.10468]
[1743720362337,1.4503,1811.2,1811.1,2.55098]
[1743720362537,4.44776378,1811.3,1811.2,1.10465]
[1743720362839,0.00826378,1811.3,1811.2,2.55095]
[1743720363040,1.50986378,1811.3,1811.2,2.55095]
[1743720363442,0.00826378,1811.3,1811.2,2.55095]
[1743720367843,0.00826378,1811.3,1811.2,5.05095]
[1743720370146,0.00826378,1811.3,1811.2,2.55095]
[1743720370344,0.00826378,1811.3,1811.2,5.05095]
[1743720372545,3.78e-06,1811.3,1811.2,5.05095]
[1743720374643,3.78e-06,1811.3,1811.2,8.76195]
[1743720377949,1.4936,1811.9,1811.8,1.10429]
[1743720378149,1.4936,1811.9,1811.8,4.31209]
[1743720378550,1.4936,1811.9,1811.8,5.79049]
[1743720378745,0.7313,1812.2,1812.1,1.10411]
[1743720380253,2.2131,1812.2,1812.1,1.10411]
[1743720381049,2.2131,1812.2,1812.1,2.51951]
[1743720381251,1.4818,1812.2,1812.1,2.51951]
[1743720382352,1.4818,1812.2,1812.1,3.26961]
[1743720383349,0.00826378,1812.3,1812.2,1.10405]
[1743720383551,0.00826378,1812.3,1812.2,5.69475]
[1743720385657,3.78e-06,1812.3,1812.2,8.19475]
[1743720390558,0.7102,1812.6,1812.3,2.75997]
[1743720390758,0.7102,1812.6,1812.5,4.31166]
[1743720393058,0.00826378,1812.7,1812.6,1.1038]
[1743720393360,0.7271,1812.9,1812.8,1.10368]
[1743720393560,5.968,1813.3,1813.2,1.10344]
[1743720393860,4.31111,1813.5,1813.2,1.10344]
[1743720393861,1.5042,1813.4,1813.3,1.10338]
[1743720394055,5.2122,1813.4,1813.3,1.10338]
[1743720394458,1.5042,1813.4,1813.3,1.10338]
[1743720394956,2.21,1813.4,1813.3,1.10338]
[1743720396961,2.9387,1813.4,1813.3,1.10338]
[1743720400462,2.21,1813.4,1813.3,1.10338]
[1743720404261,0.00826378,1813.5,1813.4,1.10331]
[1743720404460,1.4384,1813.6,1813.5,1.10325]
[1743720404662,1.4384,1813.6,1813.5,2.50755]
[1743720404857,1.4384,1813.6,1813.5,3.26525]
[1743720406066,0.76336378,1813.7,1813.6,1.10319]
[1743720406359,0.76336378,1813.7,1813.6,5.71529]
[1743720406566,0.7551,1813.9,1813.6,7.37004]
[1743720406766,0.7551,1813.9,1813.8,3.2078]
[1743720407065,0.7551,1813.9,1813.8,4.31087]
[1743720407265,0.7551,1813.9,1813.8,5.72597]
[1743720407564,1.3797,1814.0,1813.9,1.10301]
[1743720407865,1.38796378,1814.0,1813.9,1.10301]
[1743720408067,1.38796378,1814.0,1813.9,2.49961]
[1743720410870,1.38796378,1814.0,1813.9,1.10301]
[1743720411468,5.09196378,1814.0,1813.9,1.10301]
[1743720418478,7.59196378,1814.0,1813.8,1.10301]
[1743720418776,2.1108,1813.9,1813.8,1.10301]
[1743720420769,3.21381,1813.9,1813.8,1.10301]
[1743720421681,2.1108,1813.9,1813.8,1.10301]
[1743720422081,3.21381,1813.9,1813.8,1.10301]
[1743720423081,2.1108,1813.9,1813.8,1.10301]
[1743720423381,1.4231,1813.9,1813.8,1.10301]
[1743720423682,0.00826378,1814.0,1813.9,1.10301]
[1743720424270,0.00826378,1814.0,1813.9,2.51621]
[1743720429681,0.00826378,1814.0,1813.9,5.01621]
[1743720429986,0.7477,1814.3,1814.2,1.10283]
[1743720430488,2.1867,1814.3,1814.2,1.10283]
[1743720430882,2.1867,1814.3,1814.2,2.53273]
[1743720434191,2.1867,1814.3,1814.2,1.10283]
[1743720434689,1.10295,1814.0,1813.9,1.10297]
[1743720434889,3.701,1814.0,1813.9,1.10297]
[1743720435283,1.10302,1813.9,1813.8,1.10305]
[1743720435485,2.1428,1813.9,1813.8,1.10305]
[1743720435887,8.95366,1813.9,1813.8,1.10307]
[1743720436283,1.10311,1813.8,1813.5,3.45809]
[1743720436484,8.01193,1813.7,1813.6,1.10319]
[1743720436886,9.40503,1813.7,1813.6,1.10319]
[1743720437087,8.3019,1813.7,1813.6,1.10319]
[1743720437488,5.0941,1813.7,1813.6,1.10319]
[1743720438188,6.19723,1813.7,1813.6,1.10319]
[1743720438493,9.40503,1813.7,1813.6,1.10319]
[1743720438696,8.3019,1813.7,1813.6,1.10319]
[1743720438890,11.90503,1813.7,1813.6,1.10319]
[1743720439894,10.8019,1813.7,1813.6,1.10319]
[1743720440696,5.0941,1813.7,1813.6,1.10319]
[1743720441193,1.3931,1813.7,1813.6,1.10319]
[1743720441393,5.0941,1813.7,1813.6,1.10319]
[1743720441987,8.3019,1813.7,1813.6,1.10319]
[1743720442187,9.40503,1813.7,1813.6,1.10319]
[1743720442389,8.3019,1813.7,1813.6,1.10319]
[1743720444799,9.40503,1813.7,1813.6,1.10319]
[1743720447197,6.19723,1813.7,1813.6,1.10319]
[1743720448498,5.0941,1813.7,1813.6,1.10319]
[1743720448798,5.0941,1813.7,1813.6,2.51529]
[1743720448994,6.19723,1813.7,1813.6,2.51529]
[1743720449799,5.0941,1813.7,1813.6,2.51529]
[1743720450001,6.19723,1813.7,1813.6,2.51529]
[1743720450489,5.0941,1813.7,1813.6,2.51529]
[1743720450891,9.1758,1813.8,1813.7,1.10313]
[1743720451094,9.668,1813.8,1813.7,2.59303]
[1743720451294,10.77107,1813.8,1813.7,2.59303]
[1743720451499,12.25637,1813.8,1813.7,2.59303]
[1743720451695,1.10318,1813.7,1813.6,1.10313]
[1743720451900,2.58848,1813.7,1813.6,1.10313]
[1743720452702,1.10319,1813.6,1813.5,1.1032]
[1743720452907,2.57109,1813.6,1813.5,1.1032]
[1743720460609,1.4679,1813.6,1813.5,1.1032]
[1743720460804,1.4679,1813.6,1813.5,2.5885]
[1743720462107,2.57109,1813.6,1813.5,2.5885]
[1743720463003,1.4679,1813.6,1813.5,2.5885]
[1743720464103,2.57109,1813.6,1813.5,2.5885]
[1743720465710,1.4679,1813.6,1813.5,2.5885]
[1743720466110,2.57109,1813.6,1813.5,2.5885]
[1743720466716,1.4679,1813.6,1813.5,2.5885]
[1743720466906,2.57109,1813.6,1813.5,2.5885]
[1743720467302,2.57109,1813.6,1813.5,1.1032]
[1743720467502,2.75814,1813.5,1813.2,0.00826378]
[1743720467703,4.31118,1813.3,1813.2,0.00826378]
[1743720468110,1.10355,1813.1,1813.0,1.10353]
[1743720468314,1.1036,1813.0,1812.9,1.10358]
[1743720468514,1.10365,1812.9,1812.8,1.10363]
[1743720468706,2.60238,1813.0,1812.9,1.10362]
[1743720468913,1.10358,1813.0,1812.9,1.10362]
[1743720469111,1.10365,1812.9,1812.8,1.10362]
[1743720469311,1.10365,1812.9,1812.8,1.11188378]
[1743720470715,1.10365,1812.9,1812.8,0.00826378]
[1743720470916,6.81145,1812.9,1812.8,0.00826378]
[1743720473315,5.7078,1812.9,1812.2,2.76012]
[1743720473620,1.10398,1812.4,1812.3,1.10396]
[1743720473920,4.80298,1812.4,1812.3,1.10396]
[1743720474222,4.80298,1812.4,1812.3,1.10398]
[1743720474515,3.699,1812.4,1812.3,1.10398]
[1743720474715,4.80292,1812.4,1812.3,1.10398]
[1743720475614,3.699,1812.4,1812.3,1.10398]
[1743720476117,1.10385,1812.6,1812.5,1.10386]
[1743720476319,4.80285,1812.6,1812.5,1.10386]
[1743720477321,1.10386,1812.5,1812.4,4.04696]
[1743720477817,1.10386,1812.5,1812.4,1.10386]
[1743720479221,4.80287,1812.6,1812.5,1.10386]
[1743720479522,3.699,1812.6,1812.5,1.10386]
[1743720479719,1.10377,1812.7,1812.6,1.1038]
[1743720479918,4.80377,1812.7,1812.6,1.1038]
[1743720480114,1.10384,1812.6,1812.5,1.10382]
[1743720480318,1.10386,1812.5,1812.4,2.48557]
[1743720480821,1.10385,1812.6,1812.5,1.10383]
[1743720481417,6.9078,1812.7,1812.4,1.3817]
[1743720481620,7.77693,1812.8,1812.7,1.10374]
[1743720481824,1.10377,1812.7,1812.6,1.10374]
[1743720482322,1.10377,1812.7,1812.6,1.79184]
[1743720482821,1.10377,1812.7,1812.6,0.6881]
[1743720483023,1.1038,1812.6,1812.5,1.10383]
[1743720483524,2.5353,1812.6,1812.5,1.10383]
[1743720486525,1.4315,1812.6,1812.5,1.10383]
[1743720486718,2.5353,1812.6,1812.5,1.10383]
[1743720487124,1.4315,1812.6,1812.5,1.10383]
[1743720487322,12.87073,1812.8,1812.7,1.10374]
[1743720487823,1.10374,1812.7,1812.6,4.01905]
[1743720488025,2.49754,1812.7,1812.6,4.01905]
[1743720489020,1.3938,1812.7,1812.6,4.01905]
[1743720489221,2.49754,1812.7,1812.6,4.01905]
[1743720489422,1.3938,1812.7,1812.6,4.01905]
[1743720489622,2.49754,1812.7,1812.6,4.01905]
[1743720491924,1.10386,1812.6,1812.5,1.10382]
[1743720492124,2.53426,1812.6,1812.5,1.10382]
[1743720493122,1.4304,1812.6,1812.5,1.10382]
[1743720493324,7.77691,1812.8,1812.7,1.10374]
[1743720493528,11.47591,1812.8,1812.7,1.10374]
[1743720493731,1.10374,1812.7,1812.6,3.25624]
[1743720493930,2.53414,1812.7,1812.6,3.25624]
[1743720494224,5.74194,1812.7,1812.6,3.25624]
[1743720494429,2.53414,1812.7,1812.6,3.25624]
[1743720494625,6.23314,1812.7,1812.6,3.25624]
[1743720494818,5.968,1812.8,1812.6,3.25624]
[1743720495024,7.07168,1812.8,1812.7,3.22304]
[1743720495226,10.77068,1812.8,1812.7,3.22304]
[1743720495631,1.10385,1812.6,1812.5,1.10378]
[1743720496321,2.56515,1812.6,1812.5,1.10378]
[1743720496721,3.25455,1812.6,1812.5,1.10378]
[1743720498232,1.10392,1812.4,1812.3,1.81315]
[1743720498434,4.80292,1812.4,1812.3,1.81315]
[1743720498836,6.22752,1812.4,1812.3,1.81315]
[1743720500344,6.22752,1812.4,1812.3,0.7092]
[1743720500545,6.22752,1812.4,1812.3,1.81318]
[1743720501445,6.22752,1812.4,1812.3,3.23228]
[1743720502345,0.6894,1812.6,1812.3,2.1283]
[1743720502640,2.5465,1812.7,1812.6,1.1038]
[1743720502850,6.2455,1812.7,1812.6,1.1038]
[1743720503045,9.4533,1812.7,1812.6,1.1038]
[1743720503447,1.1038,1812.6,1812.5,3.2266]
[1743720504248,6.24547,1812.7,1812.6,1.1038]
[1743720504647,5.75427,1812.7,1812.6,1.4014]
[1743720504846,9.45327,1812.7,1812.6,1.4014]
[1743720505144,9.45327,1812.7,1812.6,2.5052]
[1743720505647,6.24547,1812.7,1812.6,2.5052]
[1743720505845,2.54647,1812.7,1812.6,2.5052]
[1743720506046,4.80277,1812.7,1812.6,2.5052]
[1743720506246,4.80277,1812.7,1812.6,1.4014]
[1743720506450,4.80277,1812.7,1812.6,2.5052]
[1743720506649,6.20127,1812.7,1812.6,2.5052]
[1743720506854,9.40907,1812.7,1812.6,1.4014]
[1743720507346,9.40907,1812.7,1812.6,2.5052]
[1743720507649,9.40907,1812.7,1812.6,1.4014]
[1743720507849,9.40907,1812.7,1812.6,2.5052]
[1743720508050,1.10392,1812.4,1812.3,0.7092]
[1743720508245,4.80192,1812.4,1812.3,1.81313]
[1743720508650,6.19082,1812.4,1812.3,3.20103]
[1743720519561,1.10398,1812.3,1812.2,1.83227378]
[1743720519750,2.58708,1812.3,1812.2,1.83227378]
[1743720520556,1.4831,1812.3,1812.2,1.83227378]
[1743720520746,1.4831,1812.3,1812.2,3.20887378]
[1743720521552,4.44356378,1812.4,1812.3,1.10398]
[1743720521753,3.70626378,1812.4,1812.3,2.48058]
[1743720523058,4.81018378,1812.4,1812.3,2.48058]
[1743720523660,8.01798378,1812.4,1812.3,1.10398]
[1743720523850,9.46408378,1812.4,1812.3,1.10398]
[1743720524448,6.25628378,1812.4,1812.3,1.10398]
[1743720524651,6.25628378,1812.4,1812.3,2.54358]
[1743720525962,6.25628378,1812.4,1812.3,1.10398]
[1743720526355,10.16558378,1812.4,1812.3,1.10398]
[1743720529765,1.10398,1812.3,1812.2,3.23215378]
[1743720529966,2.50128,1812.3,1812.2,3.23215378]
[1743720530263,1.3973,1812.3,1812.0,1.8497]
[1743720530462,1.10411,1812.1,1812.0,1.8497]
[1743720530661,4.80111,1812.1,1812.0,1.1041]
[1743720530865,6.93081,1812.1,1812.0,1.1041]
[1743720537461,1.10417,1812.0,1811.9,3.31134378]
[1743720537660,5.73487,1812.0,1811.9,0.00826378]
[1743720538364,5.73487,1812.0,1811.9,1.11249378]
[1743720538558,5.73487,1812.0,1811.9,0.00826378]
[1743720538870,1.4229,1812.0,1811.9,1.11249378]
[1743720539158,5.53353,1812.1,1812.0,1.10417]
[1743720539356,5.53353,1812.1,1812.0,4.02457]
[1743720539357,4.80113,1812.1,1812.0,4.02457]
[1743720540465,4.80111,1812.1,1812.0,4.02457]
[1743720541462,2.527,1812.2,1812.1,1.10411]
[1743720541662,6.223,1812.2,1812.1,2.50601]
[1743720542655,1.4229,1812.2,1812.1,2.50601]
[1743720542858,10.28803378,1812.4,1812.3,1.10398]
[1743720543165,13.98403378,1812.4,1812.3,1.10398]
[1743720543363,12.88006378,1812.4,1812.3,1.10398]
[1743720543563,13.98398378,1812.4,1812.3,2.61418]
[1743720543764,12.88006378,1812.4,1812.3,2.61418]
[1743720543969,13.98398378,1812.4,1812.3,2.61418]
[1743720544367,10.77618378,1812.4,1812.3,2.61418]
[1743720545966,9.67226378,1812.4,1812.3,2.61418]
[1743720546464,10.77618378,1812.4,1812.3,2.61418]
[1743720547068,0.00826378,1812.4,1812.3,5.82198]
[1743720547265,0.00826378,1812.4,1812.3,8.32198]
[1743720547665,0.00826378,1812.4,1812.3,5.82198]
[1743720550263,0.00826378,1812.4,1812.3,2.61418]
[1743720550969,1.11218378,1812.4,1812.3,1.10398]
[1743720551467,2.62938378,1812.4,1812.3,1.10398]
[1743720551672,1.52546378,1812.4,1812.3,1.10398]
[1743720552165,0.00826378,1812.4,1812.3,2.48958]
[1743720552366,0.00826378,1812.4,1812.3,3.20398]
[1743720554373,0.00826378,1812.4,1812.3,6.41178]
[1743720554578,0.00826378,1812.4,1812.3,8.91178]
[1743720555279,5.968,1812.6,1812.3,8.91178]
[1743720555280,3.2078,1812.8,1812.4,2.75968]
[1743720555466,3.2078,1812.8,1812.7,1.10374]
[1743720555671,5.968,1813.0,1812.9,1.10362]
[1743720555971,4.39,1813.1,1813.0,1.10356]
[1743720556171,5.8656,1813.1,1813.0,1.10356]
[1743720556671,0.00826378,1813.2,1813.1,1.1035]
[1743720556874,0.00826378,1813.2,1813.1,4.9854]
[1743720557078,0.00826378,1813.2,1813.1,8.1932]
[1743720563078,0.00826378,1813.2,1813.1,4.5897]
[1743720563380,0.00826378,1813.2,1813.1,3.2078]
[1743720563582,1.44256378,1813.2,1813.1,3.2078]
[1743720563884,2.54600378,1813.2,1813.1,3.2078]
[1743720564382,1.44256378,1813.2,1813.1,3.2078]
[1743720564582,1.44256378,1813.2,1813.1,4.3113]
[1743720565177,2.54600378,1813.2,1813.1,3.2078]
[1743720567682,1.1035,1813.1,1813.0,2.48141]
[1743720567873,2.5587,1813.1,1813.0,2.48141]
[1743720568077,1.4552,1813.1,1813.0,2.48141]
[1743720568773,1.10356,1813.0,1812.9,1.11184378]
[1743720570483,1.10356,1813.0,1812.9,0.00826378]
[1743720570979,2.53276,1813.0,1812.9,0.00826378]
[1743720572484,1.4292,1813.0,1812.9,0.00826378]
[1743720572682,6.8998,1813.1,1813.0,1.10356]
[1743720572875,8.0033,1813.1,1813.0,1.10356]
[1743720573081,8.0033,1813.1,1813.0,1.83536]
[1743720574487,1.10356,1813.0,1812.9,0.00826378]
[1743720574788,3.33026,1813.0,1812.9,0.00826378]
[1743720574990,2.57666,1813.0,1812.9,1.11188378]
[1743720575487,2.57666,1813.0,1812.9,0.00826378]
[1743720575488,3.33026,1813.0,1812.9,0.00826378]
[1743720578587,3.33026,1813.0,1812.9,1.11188378]
[1743720578784,2.57666,1813.0,1812.9,1.11188378]
[1743720579492,2.57666,1813.0,1812.9,2.56318378]
[1743720579794,3.692,1813.1,1813.0,1.10356]
[1743720579987,4.7955,1813.1,1813.0,2.55136]
[1743720584897,3.692,1813.1,1813.0,2.55136]
[1743720585995,1.1035,1813.1,1813.0,2.55136]
[1743720587594,2.56046378,1813.2,1813.1,1.1035]
[1743720587795,1.1035,1813.1,1813.0,2.5513]
[1743720588096,1.4938,1813.1,1813.0,2.5513]
[1743720588290,2.5973,1813.1,1813.0,2.5513]
[1743720588497,1.4938,1813.1,1813.0,2.5513]
[1743720588901,2.5973,1813.1,1813.0,2.5513]
[1743720589103,1.4938,1813.1,1813.0,2.5513]
[1743720589297,4.25255,1813.1,1812.9,1.11182378]
[1743720589600,1.10356,1813.0,1812.9,1.11182378]
[1743720589898,1.10356,1813.0,1812.9,2.56522378]
[1743720591002,4.79456,1813.0,1812.9,0.00826378]
[1743720591299,8.00236,1813.0,1812.9,0.00826378]
[1743720591500,8.00236,1813.0,1812.6,3.29455]
[1743720591501,1.10374,1812.7,1812.6,3.29455]
[1743720596203,1.10374,1812.7,1812.6,0.7374]
[1743720596402,1.10374,1812.7,1812.6,1.8412]
[1743720596800,2.53824,1812.7,1812.6,0.7374]
[1743720598203,6.22924,1812.7,1812.6,0.7374]
[1743720598393,6.22924,1812.7,1812.6,1.8412]
[1743720599298,6.22924,1812.7,1812.6,0.7374]
[1743720600200,1.1038,1812.6,1812.5,0.00826378]
[1743720600399,2.75982,1812.4,1812.1,1.10406]
[1743720600601,1.10405,1812.2,1812.1,0.7508]
[1743720600799,3.2078,1812.2,1811.9,1.10418]
[1743720601101,1.10425,1811.9,1811.8,1.10425]
[1743720601301,1.10425,1811.9,1811.8,2.56875]
[1743720601503,1.10425,1811.9,1811.8,1.10429]
[1743720601707,1.10429,1811.8,1811.7,2.56908378]
[1743720601909,0.00826378,1812.0,1811.9,1.10423]
[1743720602102,1.47956378,1812.0,1811.9,1.10423]
[1743720602304,2.58373378,1812.0,1811.9,1.10423]
[1743720603813,1.10423,1811.9,1811.8,2.61454]
[1743720604206,1.47956378,1812.0,1811.8,2.61454]
[1743720604409,1.10423,1811.9,1811.8,2.61454]
[1743720605809,1.47956378,1812.0,1811.8,1.5103]
[1743720606010,1.10423,1811.9,1811.8,2.61454]
[1743720606410,2.58376378,1812.0,1811.9,1.10423]
[1743720606610,0.00826378,1812.0,1811.9,2.61643]
[1743720610618,0.00826378,1812.0,1811.9,8.32423]
[1743720611820,3.2078,1812.4,1812.3,1.10398]
[1743720612017,3.27326,1812.5,1812.4,1.10392]
[1743720612222,1.4465,1812.5,1812.4,1.10392]
[1743720612813,1.4465,1812.5,1812.4,2.61642]
[1743720613118,0.00826378,1812.6,1812.5,1.10386]
[1743720613319,3.69926378,1812.6,1812.5,1.83016]
[1743720613818,5.19976378,1812.6,1812.5,1.83016]
[1743720615921,5.19976378,1812.6,1812.5,4.31166]
[1743720616119,5.19976378,1812.6,1812.5,1.10386]
[1743720616420,6.30356378,1812.6,1812.5,1.10386]
[1743720616820,6.30361378,1812.6,1812.5,1.10386]
[1743720618019,6.30361378,1812.6,1812.4,3.29516]